bitfinex/quotes_BTCUSD_20220218
["timestamp","ask_amount","ask_price","bid_price","bid_amount"]
[1645144187610,0.000758,40623.0,40622.0,0.88420461]
[1645144188260,0.000758,40623.0,40622.0,0.88620461]
[1645144189556,0.000758,40623.0,40622.0,0.88420461]
[1645144190357,0.000758,40623.0,40622.0,0.88620461]
[1645144191560,0.000758,40623.0,40622.0,0.88420461]
[1645144192013,0.000758,40623.0,40622.0,0.384544]
[1645144192214,0.000758,40623.0,40622.0,0.386544]
[1645144193417,0.000758,40623.0,40622.0,0.384544]
[1645144194214,0.000758,40623.0,40622.0,0.386544]
[1645144195656,0.000758,40623.0,40622.0,0.384544]
[1645144196357,0.000758,40623.0,40622.0,0.386544]
[1645144197561,0.000758,40623.0,40622.0,0.384544]
[1645144198357,0.000758,40623.0,40622.0,0.386544]
[1645144199608,0.000758,40623.0,40622.0,0.384544]
[1645144200311,0.000758,40623.0,40622.0,0.386544]
[1645144200509,0.0587427,40624.0,40622.0,0.386544]
[1645144201214,0.0583774,40624.0,40622.0,0.386544]
[1645144201411,0.0587427,40624.0,40622.0,0.386544]
[1645144201609,0.0587427,40624.0,40622.0,0.384544]
[1645144202210,0.0583774,40624.0,40622.0,0.384544]
[1645144202611,0.0587427,40624.0,40622.0,0.386544]
[1645144202808,6.8e-05,40623.0,40622.0,0.386544]
[1645144203857,6.8e-05,40623.0,40622.0,0.384544]
[1645144204656,6.8e-05,40623.0,40622.0,0.386544]
[1645144206056,6.8e-05,40623.0,40622.0,0.384544]
[1645144206462,6.8e-05,40623.0,40622.0,0.386544]
[1645144207410,0.0587427,40624.0,40623.0,0.33474799]
[1645144207612,0.0583774,40624.0,40623.0,0.33474799]
[1645144208010,0.0583774,40624.0,40623.0,0.9363532]
[1645144208411,0.0583774,40624.0,40623.0,0.9373532]
[1645144209014,0.0583774,40624.0,40623.0,0.62574485]
[1645144209211,0.0583774,40624.0,40623.0,0.81845761]
[1645144209612,0.0583774,40624.0,40623.0,0.81745761]
[1645144210015,0.0010584,40624.0,40623.0,0.81745761]
[1645144210313,0.0010584,40624.0,40623.0,0.81845761]
[1645144211566,0.0010584,40624.0,40623.0,0.81745761]
[1645144212164,0.0010584,40624.0,40623.0,0.86925121]
[1645144212365,0.0010584,40624.0,40623.0,0.87025121]
[1645144212763,0.0010584,40624.0,40623.0,0.52846075]
[1645144212966,0.05887188,40626.0,40623.0,0.52846075]
[1645144213164,0.0590719,40626.0,40623.0,0.6515695]
[1645144213363,0.0010972,40626.0,40625.0,0.35006472]
[1645144214168,0.00089718,40626.0,40625.0,0.35006472]
[1645144214408,0.00089718,40626.0,40625.0,0.46060397]
[1645144214707,0.00089718,40626.0,40625.0,0.57014322]
[1645144215510,0.00089718,40626.0,40625.0,0.56914322]
[1645144215711,0.00089718,40626.0,40625.0,0.99928825]
[1645144215913,0.00089718,40626.0,40625.0,2.02814322]
[1645144216114,0.00089718,40626.0,40625.0,2.07754322]
[1645144216313,0.00020002,40628.0,40627.0,1.705043]
[1645144216513,0.0013763,40629.0,40628.0,1.309]
[1645144216717,0.0013763,40629.0,40628.0,1.742905]
[1645144216915,0.0013763,40629.0,40628.0,1.90842572]
[1645144218366,0.0032,40633.0,40628.0,1.9321695]
[1645144218567,0.001239,40632.0,40631.0,1.72055472]
[1645144218763,0.001239,40632.0,40631.0,2.12914601]
[1645144218962,0.001239,40632.0,40631.0,2.13894601]
[1645144219762,0.001239,40632.0,40631.0,2.24848526]
[1645144220164,0.001239,40632.0,40631.0,2.35802451]
[1645144220562,0.001239,40632.0,40631.0,0.79183322]
[1645144221808,0.001239,40632.0,40631.0,2.09883322]
[1645144222016,0.001239,40632.0,40631.0,0.78983322]
[1645144222409,0.001239,40632.0,40631.0,0.79183322]
[1645144222609,0.00130389,40632.0,40631.0,0.79183322]
[1645144223510,0.00130389,40632.0,40631.0,0.78983322]
[1645144224312,0.00130389,40632.0,40631.0,0.79183322]
[1645144224516,0.00130389,40632.0,40631.0,2.10083322]
[1645144225313,0.00130389,40632.0,40631.0,0.79183322]
[1645144225582,0.00130389,40632.0,40631.0,1.08433966]
[1645144226375,0.00130389,40632.0,40631.0,2.39533966]
[1645144226575,0.00130389,40632.0,40631.0,1.08633966]
[1645144226776,0.00130389,40632.0,40631.0,0.79183322]
[1645144227578,0.00130389,40632.0,40631.0,0.78983322]
[1645144228380,0.00130389,40632.0,40631.0,0.79183322]
[1645144228579,0.00130389,40632.0,40631.0,2.10083322]
[1645144229179,0.00130389,40632.0,40631.0,0.79183322]
[1645144229615,0.00130389,40632.0,40631.0,0.74243322]
[1645144230314,0.00130389,40632.0,40631.0,0.74043322]
[1645144230513,0.00130389,40632.0,40631.0,0.74243322]
[1645144231121,0.00130389,40632.0,40631.0,0.2210785]
[1645144231416,0.00130389,40632.0,40631.0,0.5555835]
[1645144231614,0.31833351,40632.0,40631.0,0.2190785]
[1645144231814,0.31833351,40632.0,40631.0,0.5535835]
[1645144232014,0.00130389,40632.0,40631.0,0.5535835]
[1645144233172,0.00130389,40632.0,40631.0,0.6035835]
[1645144234571,0.00130389,40632.0,40631.0,0.5535835]
[1645144235770,0.00130389,40632.0,40631.0,0.6035835]
[1645144235971,0.26293168,40632.0,40631.0,0.6035835]
[1645144236811,0.26293168,40632.0,40631.0,0.6045835]
[1645144237216,0.54471804,40632.0,40631.0,0.2700785]
[1645144237414,0.54471804,40632.0,40631.0,0.2210785]
[1645144237618,0.87922304,40632.0,40631.0,0.2210785]
[1645144238012,0.57919732,40632.0,40631.0,0.2210785]
[1645144238214,0.26293168,40632.0,40631.0,0.2190785]
[1645144238812,0.26293168,40632.0,40631.0,0.2690785]
[1645144239015,0.00130389,40632.0,40631.0,0.2690785]
[1645144240414,0.12442889,40632.0,40631.0,0.2190785]
[1645144241261,0.43265531,40632.0,40631.0,0.2200785]
[1645144241861,0.43265531,40632.0,40631.0,0.2700785]
[1645144242260,0.30953031,40632.0,40631.0,0.2700785]
[1645144242764,0.30953031,40632.0,40631.0,0.2690785]
[1645144242959,0.30953031,40632.0,40631.0,0.26900922]
[1645144243360,0.30953031,40632.0,40631.0,0.27000922]
[1645144244613,0.30953031,40632.0,40631.0,0.26900922]
[1645144245420,0.30953031,40632.0,40631.0,0.27000922]
[1645144245818,0.00130389,40632.0,40631.0,0.27000922]
[1645144246018,0.00130389,40632.0,40631.0,0.60451422]
[1645144246419,0.06510547,40633.0,40632.0,0.33711277]
[1645144246718,0.06516,40633.0,40632.0,0.33711277]
[1645144246918,0.06516,40633.0,40632.0,0.44665202]
[1645144247118,0.06516,40633.0,40632.0,0.55619127]
[1645144247319,0.06516,40633.0,40632.0,0.55719127]
[1645144248565,0.06516,40633.0,40632.0,0.55619127]
[1645144249365,0.06516,40633.0,40632.0,0.55719127]
[1645144249565,0.06516,40633.0,40632.0,0.97719127]
[1645144249765,0.06516,40633.0,40632.0,0.99271199]
[1645144249969,0.06516,40633.0,40632.0,0.97719127]
[1645144250573,0.06516,40633.0,40632.0,0.97619127]
[1645144251365,0.06516,40633.0,40632.0,0.97819127]
[1645144252209,0.06516,40633.0,40632.0,1.03811127]
[1645144252409,0.06516,40633.0,40632.0,1.33788247]
[1645144252609,0.06522152,40633.0,40632.0,1.33788247]
[1645144253113,0.06522152,40633.0,40632.0,1.35340319]
[1645144253308,0.00367952,40633.0,40632.0,1.35240319]
[1645144253710,0.00367952,40633.0,40632.0,1.40180319]
[1645144253910,0.00367952,40633.0,40632.0,1.50180319]
[1645144254710,0.00367952,40633.0,40632.0,1.50080319]
[1645144255409,0.00367952,40633.0,40632.0,1.50280319]
[1645144255672,0.00367952,40633.0,40632.0,1.43788247]
[1645144256168,0.00367952,40633.0,40632.0,1.33788247]
[1645144256367,0.00367952,40633.0,40632.0,1.43788247]
[1645144256568,0.00367952,40633.0,40632.0,1.43588247]
[1645144257368,0.00367952,40633.0,40632.0,1.43688247]
[1645144257369,0.003618,40633.0,40632.0,1.43688247]
[1645144258666,0.003618,40633.0,40632.0,1.43588247]
[1645144259069,0.003618,40633.0,40632.0,2.36063199]
[1645144259321,0.003618,40633.0,40632.0,1.20103199]
[1645144259524,0.003618,40633.0,40632.0,1.20203199]
[1645144260122,0.003618,40633.0,40632.0,2.51103199]
[1645144260323,0.003618,40633.0,40632.0,1.20203199]
[1645144260721,0.003618,40633.0,40632.0,1.20103199]
[1645144261524,0.003618,40633.0,40632.0,1.20303199]
[1645144262524,0.00367945,40633.0,40632.0,1.20303199]
[1645144262728,0.00097892,40634.0,40633.0,0.984505]
[1645144263071,0.000836,40634.0,40633.0,1.183905]
[1645144263263,0.000836,40634.0,40633.0,1.71344425]
[1645144263467,0.000836,40634.0,40633.0,1.8229835]
[1645144263963,0.000836,40634.0,40633.0,1.7735835]
[1645144265164,0.000836,40634.0,40633.0,1.6735835]
[1645144265364,0.000836,40634.0,40633.0,1.6755835]
[1645144266663,0.000836,40634.0,40633.0,1.6735835]
[1645144267314,0.000836,40634.0,40633.0,1.6755835]
[1645144268014,0.000836,40634.0,40633.0,1.7986485]
[1645144268623,0.000836,40634.0,40633.0,1.7966485]
[1645144269317,0.000836,40634.0,40633.0,1.7986485]
[1645144270568,0.000836,40634.0,40633.0,1.7966485]
[1645144271363,0.000836,40634.0,40633.0,1.7986485]
[1645144271763,0.000836,40634.0,40633.0,3.1076485]
[1645144272065,0.000836,40634.0,40633.0,1.7986485]
[1645144272664,0.000836,40634.0,40633.0,1.7966485]
[1645144272865,0.000836,40634.0,40633.0,2.02042057]
[1645144273468,0.000836,40634.0,40633.0,1.37242057]
[1645144273672,0.000836,40634.0,40633.0,1.24935557]
[1645144274070,0.000836,40634.0,40633.0,1.0255835]
[1645144275311,0.000836,40634.0,40633.0,1.0235835]
[1645144275514,0.000836,40634.0,40633.0,1.0245835]
[1645144276317,0.0011,40638.0,40637.0,0.37001559]
[1645144276512,0.00238808,40638.0,40637.0,0.70452059]
[1645144276713,0.00238808,40638.0,40637.0,1.17452059]
[1645144276913,0.00238808,40638.0,40637.0,1.28405984]
[1645144277112,0.00238808,40638.0,40637.0,1.39359909]
[1645144277512,0.00238808,40638.0,40637.0,1.39459909]
[1645144277913,0.00238808,40638.0,40637.0,1.06009409]
[1645144278568,0.00238808,40638.0,40637.0,1.05909409]
[1645144278966,0.00238808,40638.0,40637.0,1.39359909]
[1645144279163,0.00238808,40638.0,40637.0,1.05909409]
[1645144279364,0.00238808,40638.0,40637.0,1.39459909]
[1645144279665,0.33689308,40638.0,40637.0,1.06009409]
[1645144279871,0.33689308,40638.0,40637.0,0.59009409]
[1645144279872,0.38629308,40638.0,40637.0,0.59009409]
[1645144280067,0.48629308,40638.0,40637.0,0.59009409]
[1645144280666,0.48629308,40638.0,40637.0,0.58909409]
[1645144281267,0.48629308,40638.0,40637.0,0.63909409]
[1645144281470,0.48629308,40638.0,40637.0,0.64009409]
[1645144282116,0.38629308,40638.0,40637.0,0.27071609]
[1645144282317,0.59786208,40638.0,40637.0,0.25221609]
[1645144282516,0.53629308,40638.0,40637.0,0.25221609]
[1645144282717,0.219925,40636.0,40632.0,0.00260777]
[1645144282917,0.334505,40633.0,40632.0,0.00260777]
[1645144283119,0.383905,40633.0,40632.0,7.77e-06]
[1645144283318,0.483905,40633.0,40632.0,7.77e-06]
[1645144283517,0.613905,40633.0,40632.0,0.00100777]
[1645144283718,0.8310365,40633.0,40632.0,0.00100777]
[1645144283918,0.8926025,40633.0,40632.0,0.00100777]
[1645144284318,0.290966,40633.0,40632.0,0.00100777]
[1645144284718,0.290966,40633.0,40632.0,7.77e-06]
[1645144285581,0.190966,40633.0,40632.0,7.77e-06]
[1645144285973,0.49419999,40633.0,40632.0,7.77e-06]
[1645144286473,0.59419999,40633.0,40632.0,7.77e-06]
[1645144288877,0.92870499,40633.0,40632.0,7.77e-06]
[1645144289513,0.59419999,40633.0,40632.0,7.77e-06]
[1645144290314,0.89877828,40633.0,40632.0,7.77e-06]
[1645144290717,0.89977828,40633.0,40632.0,7.77e-06]
[1645144291615,0.89777828,40633.0,40632.0,7.77e-06]
[1645144292215,1.23228328,40633.0,40632.0,7.77e-06]
[1645144292417,1.28228328,40633.0,40632.0,7.77e-06]
[1645144292817,1.33004929,40633.0,40632.0,7.77e-06]
[1645144293465,0.99554429,40633.0,40632.0,7.77e-06]
[1645144293964,1.44580341,40633.0,40632.0,7.77e-06]
[1645144294369,1.11129841,40633.0,40632.0,7.77e-06]
[1645144294568,1.29580341,40633.0,40632.0,7.77e-06]
[1645144294967,0.98004929,40633.0,40632.0,7.77e-06]
[1645144295169,0.64554429,40633.0,40632.0,7.77e-06]
[1645144295668,0.61350872,40633.0,40632.0,7.77e-06]
[1645144295868,0.341966,40633.0,40632.0,7.77e-06]
[1645144296067,0.6773853,40633.0,40632.0,7.77e-06]
[1645144296268,0.5773853,40633.0,40632.0,7.77e-06]
[1645144296468,0.6773853,40633.0,40632.0,7.77e-06]
[1645144296929,0.6783853,40633.0,40632.0,7.77e-06]
[1645144297323,0.5283853,40633.0,40632.0,7.77e-06]
[1645144298127,0.142566,40633.0,40632.0,7.77e-06]
[1645144298326,0.08,40633.0,40632.0,7.77e-06]
[1645144299225,0.08,40633.0,40632.0,0.33451277]
[1645144299430,0.08,40633.0,40632.0,0.05000777]
[1645144299624,0.0795,40633.0,40632.0,0.05000777]
[1645144299825,0.0795,40633.0,40632.0,7.77e-06]
[1645144300023,0.0795,40633.0,40632.0,0.33451277]
[1645144300223,0.0795,40633.0,40632.0,0.38451277]
[1645144300426,0.0795,40633.0,40632.0,0.05000777]
[1645144300670,0.0795,40633.0,40632.0,7.77e-06]
[1645144300869,0.0795,40633.0,40632.0,0.334505]
[1645144301067,0.141049,40633.0,40632.0,0.384505]
[1645144302272,0.141049,40633.0,40631.0,0.05656912]
[1645144302871,0.141049,40633.0,40632.0,0.051]
[1645144303072,0.141049,40633.0,40632.0,0.001]
[1645144304075,0.141049,40633.0,40631.0,0.05656912]
[1645144305113,0.202604,40633.0,40631.0,0.05656912]
[1645144308072,0.141049,40633.0,40631.0,0.05656912]
[1645144309468,0.202603,40633.0,40631.0,0.05656912]
[1645144311172,0.141049,40633.0,40631.0,0.05656912]
[1645144311942,0.06284108,40635.0,40633.0,0.3436507]
[1645144312142,0.06284108,40635.0,40633.0,0.3936507]
[1645144312943,0.00128808,40635.0,40633.0,0.3946507]
[1645144314043,0.00128808,40635.0,40633.0,0.3936507]
[1645144314943,0.00128808,40635.0,40633.0,0.3946507]
[1645144315444,0.06284008,40635.0,40633.0,0.3946507]
[1645144316067,0.06284008,40635.0,40633.0,0.3936507]
[1645144316670,0.00128808,40635.0,40634.0,0.35002572]
[1645144317772,0.00128808,40635.0,40634.0,0.48279072]
[1645144318768,0.00128808,40635.0,40634.0,0.80374121]
[1645144318971,0.00128808,40635.0,40634.0,0.80247285]
[1645144319172,0.00128808,40635.0,40634.0,0.001]
[1645144319618,0.00128808,40635.0,40634.0,0.35102572]
[1645144320019,0.00128808,40635.0,40634.0,0.35002572]
[1645144320819,0.00128808,40635.0,40634.0,0.35102572]
[1645144322021,0.00128808,40635.0,40634.0,0.35002572]
[1645144323077,0.03983008,40637.0,40634.0,0.35102572]
[1645144323267,0.03983008,40637.0,40636.0,0.334505]
[1645144323468,0.03983008,40637.0,40635.0,0.05]
[1645144323669,0.03983008,40637.0,40634.0,0.23562543]
[1645144324068,0.03983008,40637.0,40635.0,0.334505]
[1645144324268,0.03983008,40637.0,40635.0,0.05]
[1645144324668,0.10137908,40637.0,40635.0,0.05]
[1645144324868,0.10137908,40637.0,40634.0,0.23462543]
[1645144325068,0.10137908,40637.0,40635.0,0.001]
[1645144325868,0.16292908,40637.0,40635.0,0.001]
[1645144326369,0.16292908,40637.0,40634.0,0.23462543]
[1645144326370,0.21292908,40637.0,40634.0,0.23462543]
[1645144327016,0.15137908,40637.0,40634.0,0.23462543]
[1645144327219,0.03983008,40637.0,40634.0,0.23462543]
[1645144327417,0.05,40636.0,40635.0,0.334505]
[1645144327616,0.03983008,40637.0,40634.0,0.17308362]
[1645144327818,0.05,40636.0,40635.0,0.334505]
[1645144328018,0.05,40636.0,40634.0,0.17308362]
[1645144328324,0.03983008,40637.0,40634.0,0.17308362]
[1645144328518,0.03983008,40637.0,40635.0,0.334505]
[1645144328718,0.03983008,40637.0,40636.0,0.35002572]
[1645144329218,0.0011,40638.0,40636.0,0.35002572]
[1645144329618,0.0011,40638.0,40636.0,0.40002572]
[1645144329918,0.0011,40638.0,40637.0,0.334505]
[1645144330218,0.0011,40638.0,40637.0,0.62023954]
[1645144330421,0.0011,40638.0,40637.0,0.93760917]
[1645144330871,0.0011,40638.0,40637.0,0.93860917]
[1645144331071,0.0011,40638.0,40637.0,0.62123954]
[1645144331267,0.0011,40638.0,40637.0,0.335505]
[1645144332068,0.0011,40638.0,40637.0,0.334505]
[1645144332269,0.0011,40638.0,40637.0,0.61319943]
[1645144333069,0.0011,40638.0,40637.0,0.61419943]
[1645144334169,0.0011,40638.0,40637.0,0.61319943]
[1645144335016,0.0011,40638.0,40637.0,0.61519943]
[1645144336217,0.0011,40638.0,40637.0,0.61319943]
[1645144337018,0.0011,40638.0,40637.0,0.336505]
[1645144337820,0.0009337,40638.0,40637.0,0.336505]
[1645144338283,0.0009337,40638.0,40637.0,0.334505]
[1645144338882,0.0009337,40638.0,40637.0,0.336505]
[1645144340183,0.0009337,40638.0,40637.0,0.334505]
[1645144341084,0.0009337,40638.0,40637.0,0.336505]
[1645144341926,0.06607955,40639.0,40638.0,0.00186739]
[1645144342128,0.0657179,40639.0,40638.0,0.38637239]
[1645144342329,0.0041819,40639.0,40638.0,0.38637239]
[1645144343029,0.0041819,40639.0,40638.0,0.05386739]
[1645144343231,0.0041819,40639.0,40638.0,0.00386739]
[1645144343934,0.0041819,40639.0,40638.0,0.01938811]
[1645144344133,0.0041819,40639.0,40635.0,0.12307297]
[1645144344134,1.134505,40638.0,40635.0,0.12307297]
[1645144344333,1.134505,40638.0,40625.0,0.3]
[1645144344334,0.32012551,40637.0,40625.0,0.3]
[1645144344532,0.207758,40636.0,40625.0,0.3]
[1645144345133,0.20921198,40634.0,40625.0,0.3]
[1645144345332,0.87412244,40634.0,40625.0,0.3]
[1645144345771,0.87412244,40634.0,40624.0,0.13865347]
[1645144345971,0.87412244,40634.0,40628.0,0.06156339]
[1645144346172,0.97412244,40634.0,40619.0,0.21023738]
[1645144346371,0.97412244,40634.0,40622.0,0.00026309]
[1645144346574,1.28529785,40634.0,40620.0,0.00026309]
[1645144346772,1.28529785,40634.0,40623.0,0.00026309]
[1645144346972,1.28629785,40634.0,40628.0,0.06156396]
[1645144347172,1.47100285,40634.0,40628.0,0.06156396]
[1645144347573,1.13649785,40634.0,40619.0,0.00026309]
[1645144347772,1.13649785,40634.0,40618.0,0.21023738]
[1645144347773,1.47100285,40634.0,40633.0,0.332098]
[1645144348173,1.47000285,40634.0,40633.0,0.332098]
[1645144348974,1.47100285,40634.0,40633.0,0.332098]
[1645144349624,1.50548213,40634.0,40633.0,0.332098]
[1645144350225,1.50448213,40634.0,40633.0,0.332098]
[1645144350424,0.158358,40631.0,40621.0,0.00026309]
[1645144350625,0.061573,40629.0,40621.0,0.00026309]
[1645144350824,0.0494,40628.0,40621.0,0.00026309]
[1645144351024,0.0494,40628.0,40620.0,0.13866091]
[1645144351424,0.172515,40628.0,40620.0,0.12314019]
[1645144351731,0.172515,40628.0,40622.0,0.06155652]
[1645144352123,0.172515,40628.0,40622.0,0.06181961]
[1645144352724,0.061561,40627.0,40622.0,0.06181961]
[1645144353574,0.25973519,40624.0,40622.0,0.06181961]
[1645144353975,0.32130419,40624.0,40622.0,0.06181961]
[1645144356924,0.123137,40624.0,40622.0,0.06181961]
[1645144357723,0.123137,40624.0,40623.0,0.334505]
[1645144357920,0.123137,40624.0,40623.0,0.33476809]
[1645144357921,0.061568,40624.0,40623.0,0.33476809]
[1645144358122,0.061568,40624.0,40623.0,0.38476809]
[1645144360324,0.061568,40624.0,40623.0,0.05126309]
[1645144360574,0.061568,40624.0,40623.0,0.00126309]
[1645144360771,0.061565,40625.0,40623.0,0.05126309]
[1645144361172,0.061565,40625.0,40623.0,0.00126309]
[1645144361572,0.061565,40625.0,40623.0,0.00026309]
[1645144361771,0.061565,40625.0,40622.0,0.06181961]
[1645144361973,0.123137,40625.0,40622.0,0.06181961]
[1645144364074,0.22014366,40623.0,40622.0,0.00026309]
[1645144364319,0.28171366,40623.0,40622.0,0.334505]
[1645144364520,0.28171366,40623.0,40622.0,0.33476809]
[1645144364724,0.06157,40623.0,40622.0,0.33476809]
[1645144365322,0.06157,40624.0,40622.0,0.33476809]
[1645144365724,0.06157,40624.0,40622.0,0.39632442]
[1645144366929,0.061555,40627.0,40622.0,0.39632442]
[1645144367233,0.009,40630.0,40622.0,0.39632442]
[1645144367234,0.009,40630.0,40627.0,0.334505]
[1645144367427,0.30751491,40638.0,40627.0,0.51914384]
[1645144367628,0.01016165,40637.0,40627.0,0.51914384]
[1645144367833,0.061548,40636.0,40631.0,0.334505]
[1645144368088,0.32057274,40635.0,40630.0,0.01552072]
[1645144368275,0.32057274,40635.0,40631.0,0.06154733]
[1645144369675,0.38212274,40635.0,40631.0,0.06154733]
[1645144370075,0.061553,40634.0,40631.0,0.06154733]
[1645144370277,0.061558,40633.0,40631.0,0.06154733]
[1645144370877,0.123113,40633.0,40631.0,0.06154733]
[1645144371278,0.173113,40633.0,40631.0,0.06154733]
[1645144371479,0.173113,40633.0,40631.0,0.06146301]
[1645144372322,0.174113,40633.0,40631.0,0.06146301]
[1645144372526,0.280625,40632.0,40631.0,0.06146301]
[1645144374325,0.281625,40632.0,40631.0,0.06146301]
[1645144374726,0.281625,40632.0,40631.0,0.39596801]
[1645144374727,0.001,40632.0,40631.0,0.39596801]
[1645144374927,0.184686,40635.0,40633.0,0.125116]
[1645144375129,0.184686,40635.0,40633.0,0.175116]
[1645144375327,0.184686,40635.0,40633.0,0.2366633]
[1645144376370,0.184686,40635.0,40633.0,0.2376633]
[1645144377371,0.246237,40635.0,40633.0,0.2376633]
[1645144377569,0.246237,40635.0,40633.0,0.2366633]
[1645144377774,0.184021,40635.0,40634.0,0.6131462]
[1645144377972,0.061548,40636.0,40634.0,0.334505]
[1645144378274,0.061548,40636.0,40634.0,0.05]
[1645144378471,0.06146994,40636.0,40634.0,0.05]
[1645144378670,0.32247874,40635.0,40634.0,0.05]
[1645144378871,0.32247874,40635.0,40633.0,0.2366633]
[1645144379070,0.32247874,40635.0,40633.0,0.2386633]
[1645144379524,0.061551,40635.0,40633.0,0.2386633]
[1645144380330,0.061551,40635.0,40633.0,0.2376633]
[1645144381726,0.061551,40635.0,40633.0,0.2366633]
[1645144382428,0.27756988,40634.0,40633.0,0.2366633]
[1645144382627,0.27756988,40634.0,40633.0,0.2376633]
[1645144383776,0.27756988,40634.0,40633.0,0.2366633]
[1645144384176,0.061551,40635.0,40633.0,0.2366633]
[1645144384476,0.061551,40635.0,40633.0,0.2376633]
[1645144384677,0.061551,40635.0,40633.0,0.1876633]
[1645144384879,0.28813834,40634.0,40633.0,0.126116]
[1645144385580,0.28813834,40634.0,40633.0,0.125116]
[1645144386079,0.28813834,40634.0,40633.0,0.175116]
[1645144386481,0.62364334,40634.0,40633.0,0.175116]
[1645144386923,0.77304334,40634.0,40633.0,0.175116]
[1645144387721,0.77204334,40634.0,40633.0,0.175116]
[1645144388323,0.77404334,40634.0,40633.0,0.175116]
[1645144389624,0.77204334,40634.0,40633.0,0.175116]
[1645144390326,0.77304334,40634.0,40633.0,0.175116]
[1645144391573,0.77204334,40634.0,40633.0,0.175116]
[1645144392373,0.483905,40634.0,40633.0,0.175116]
[1645144392573,0.484905,40634.0,40633.0,0.175116]
[1645144393771,0.77109766,40634.0,40633.0,0.175116]
[1645144394172,0.061565,40630.0,40615.0,0.26164802]
[1645144394422,0.29716536,40629.0,40616.0,0.334505]
[1645144394621,0.34716536,40629.0,40616.0,0.334505]
[1645144394821,0.44716536,40629.0,40615.0,0.334505]
[1645144395021,0.44716536,40629.0,40618.0,0.18469225]
[1645144395022,0.1596,40629.0,40618.0,0.18469225]
[1645144395223,0.35530582,40624.0,40619.0,0.384505]
[1645144395624,0.35530582,40624.0,40619.0,0.38477637]
[1645144396722,0.35530582,40624.0,40621.0,0.334505]
[1645144397122,0.35530582,40624.0,40621.0,0.38477637]
[1645144397723,0.35530582,40624.0,40621.0,0.11183485]
[1645144398972,0.35530582,40624.0,40622.0,0.334505]
[1645144399172,0.35530582,40624.0,40623.0,0.334505]
[1645144399372,0.35530582,40624.0,40623.0,0.00027137]
[1645144399572,0.061563,40624.0,40623.0,0.334505]
[1645144400672,0.061563,40624.0,40623.0,0.335505]
[1645144400873,0.061563,40624.0,40623.0,0.051]
[1645144401076,0.26554054,40625.0,40623.0,0.11256279]
[1645144401077,0.20397654,40625.0,40623.0,0.11256279]
[1645144401279,0.20397654,40625.0,40624.0,0.334505]
[1645144401676,0.20397654,40625.0,40624.0,0.00027137]
[1645144401920,0.20397654,40625.0,40624.0,0.334505]
[1645144402118,0.20397654,40625.0,40624.0,0.33477637]
[1645144402319,0.061562,40627.0,40624.0,0.33477637]
[1645144402520,0.06156,40626.0,40625.0,0.334505]
[1645144402719,0.123122,40627.0,40625.0,0.334505]
[1645144402720,0.123122,40627.0,40625.0,0.33477637]
[1645144402921,0.123122,40627.0,40625.0,0.00027137]
[1645144403121,0.123122,40627.0,40624.0,0.11283121]
[1645144403321,0.37872746,40627.0,40624.0,0.06283121]
[1645144403523,0.37872746,40627.0,40625.0,0.334505]
[1645144403524,0.061562,40627.0,40625.0,0.334505]
[1645144403725,0.06176208,40628.0,40625.0,0.38477637]
[1645144403927,0.06176208,40628.0,40625.0,0.384505]
[1645144404122,0.061561,40628.0,40625.0,0.384505]
[1645144404524,0.061561,40628.0,40625.0,0.4460593]
[1645144405022,0.184669,40630.0,40629.0,0.12352414]
[1645144405676,0.246226,40630.0,40629.0,0.12352414]
[1645144407176,0.184668,40630.0,40629.0,0.12352414]
[1645144411224,0.184668,40630.0,40629.0,0.12452414]
[1645144412724,0.184668,40630.0,40629.0,0.12352414]
[1645144415577,0.46313244,40630.0,40629.0,0.12352414]
[1645144416581,0.79763744,40630.0,40629.0,0.12352414]
[1645144416828,0.61313244,40630.0,40629.0,0.12352414]
[1645144417825,0.56313244,40630.0,40629.0,0.12352414]
[1645144418430,0.56313244,40630.0,40625.0,0.00027137]
[1645144418431,1.48079282,40629.0,40625.0,0.00027137]
[1645144418630,1.48079282,40629.0,40613.0,0.3848509]
[1645144418631,0.208358,40626.0,40619.0,0.00021487]
[1645144418829,0.0494,40625.0,40619.0,0.00021487]
[1645144419029,0.208358,40620.0,40619.0,0.00021487]
[1645144419227,0.307758,40620.0,40619.0,0.00021487]
[1645144419532,0.73346695,40620.0,40619.0,0.00021487]
[1645144419727,0.83346695,40620.0,40613.0,0.00027137]
[1645144419928,0.83346695,40620.0,40612.0,0.0094]
[1645144419929,0.24547981,40613.0,40612.0,0.0094]
[1645144420126,0.24547981,40613.0,40607.0,0.00027137]
[1645144420327,0.24547981,40613.0,40606.0,0.00027137]
[1645144420582,0.05,40610.0,40604.0,0.00027137]
[1645144420779,0.106593,40610.0,40606.0,0.00027137]
[1645144420981,0.061592,40609.0,40603.0,0.1499]
[1645144421178,0.061592,40609.0,40605.0,0.00021472]
[1645144421779,0.123185,40609.0,40605.0,0.00021472]
[1645144421979,0.12319,40608.0,40605.0,0.00021472]
[1645144422182,0.12319,40608.0,40604.0,0.00027137]
[1645144422478,0.12319,40608.0,40605.0,0.00021472]
[1645144422979,0.40367155,40606.0,40605.0,0.00021472]
[1645144423180,0.87711972,40606.0,40605.0,0.00021472]
[1645144423379,0.219966,40605.0,40604.0,0.00027137]
[1645144423578,0.219966,40605.0,40603.0,0.10011473]
[1645144423781,0.5,40604.0,40603.0,0.0753861]
[1645144423979,0.834505,40604.0,40603.0,0.0753861]
[1645144424423,0.834505,40604.0,40603.0,0.12517137]
[1645144424624,0.334505,40604.0,40603.0,0.12517137]
[1645144425426,0.335505,40604.0,40603.0,0.12517137]
[1645144426628,0.68241924,40604.0,40603.0,0.12517137]
[1645144427227,0.68341924,40604.0,40603.0,0.12517137]
[1645144428080,0.34891424,40604.0,40603.0,0.12517137]
[1645144428473,0.68241924,40604.0,40603.0,0.12517137]
[1645144429277,0.68341924,40604.0,40603.0,0.12517137]
[1645144430577,0.68241924,40604.0,40603.0,0.12517137]
[1645144431381,0.68341924,40604.0,40603.0,0.12517137]
[1645144432523,0.73181924,40604.0,40603.0,0.12517137]
[1645144433118,0.73181924,40604.0,40603.0,0.05]
[1645144433322,1.07547498,40604.0,40603.0,0.05]
[1645144433523,1.07547498,40604.0,40601.0,0.53261473]
[1645144433524,0.281593,40603.0,40601.0,0.53261473]
[1645144433721,0.384505,40602.0,40601.0,0.00021473]
[1645144433924,0.67705388,40602.0,40601.0,0.00021473]
[1645144434122,0.77705388,40602.0,40600.0,0.0999]
[1645144434321,0.77705388,40602.0,40599.0,0.00021473]
[1645144434322,0.158358,40600.0,40599.0,0.00021473]
[1645144434522,0.5270516,40600.0,40599.0,0.00021473]